Cogmind - Beta 16 @@@ ROGUE MODE // 2025.11.11 @ 17:06:57 Player: unq Result: Self-destructed Performance ------------- Evolutions (6) 3000 Regions Visited (17) 3400 Robots Destroyed (314) 1570 Value Destroyed (15857) 15857 Prototype IDs (24) 480 Alien Tech Used (0) 0 Bonus (9093) 9093 TOTAL SCORE: 33400 Bonus ------- High Alert Combat Kills 2689 Follower Combat Kills 1704 Entered Garrisons 1200 Used RIF Installer 3500 Cogmind --------- Core Integrity 7/1150 Matter 300/300 Energy 31/100 System Corruption 21% Temperature Cool (0) Movement Core (50) Location -4/Factory Parts ------- > --- POWER (2) -------- (None) > --- PROPULSION (6) --- (None) > --- UTILITY (8) ------ Improved Transmission Jammer Relay Coupler [NC] (33) Relay Coupler [NC] (35) Relay Coupler [Brawler] (17) > --- WEAPON (3) ------- (None) > --- INVENTORY (5) ---- Light Ion Engine Antimatter Reactor Variable Charge Gun Missile Launcher Plasma Lance Peak State ------------ > --- POWER ------------ Light Antimatter Reactor Light Antimatter Reactor > --- PROPULSION ------- Flexi-carbon Leg Flexi-carbon Leg Flexi-carbon Leg Myomer Leg Myomer Leg Advanced VSS Leg > --- UTILITY ---------- Advanced Cooling System High-capacity Storage Unit Seismic Detector Core Analyzer Quantum Capacitor Relay Coupler [Brawler] Relay Coupler [Sentry] > --- WEAPON ----------- Hypervelocity Gauss Cannon Improved Remote Datajack Plasma Lance > --- INVENTORY -------- Flexi-carbon Leg Flexi-carbon Leg Armored Wheel Advanced Heat Sink Matter Compressor Improved Weapon Cycler Improved Transmission Jammer Improved Medium Armor Plating Improved Medium Armor Plating Advanced Powered Armor Relay Coupler [NC] Relay Coupler [NC] Relay Coupler [Demolisher] Relay Coupler [Hunter] High-powered Tractor Beam Variable Charge Gun HERF Cannon Missile Launcher Improved Remote Datajack Improved Plasma Cutter [Rating: 112] Favorites ----------- Power Cooled Deuterium Engine Engine Cooled Deuterium Engine Power Core Neutrino Core Reactor Light Antimatter Reactor Propulsion Improved Carbon-fiber Leg Treads Light Treads Leg Improved Carbon-fiber Leg Wheel Armored Wheel Flight Unit Improved Flight Unit Utility Seismic Detector Device Seismic Detector Storage Large Storage Unit Processor Core Analyzer Hackware Relay Coupler [Grunt] Protection Hardened Medium Armor Plating Weapon Ripper Energy Gun EM Shotgun Energy Cannon Advanced Beam Cannon Ballistic Gun Precision Assault Rifle Ballistic Cannon Hypervelocity Gauss Cannon Launcher Missile Launcher Special Weapon Improved Remote Datajack Impact Weapon Hammer Slashing Weapon Ripper Piercing Weapon Plasma Lance Build | -11 -10 -10 -10 -9 -8 -8 -7 -7 -6 -6 -6 -6 -5 -5 -4 -4 -4 ------- Run | Yrd Mat Min Exi Min Mat Gar Fac Gar Fac Gar Fac Gar Fac Gar Fac Gar Fac Slots Evolved 12 | . . . . . 4 . 2 . 2 . . . 2 . 2 . . Power 1 | . . . . . . . . . . . . . . . 1 . . Propulsion 4 | . . . . . 1 . . . 2 . . . . . 1 . . Utility 6 | . . . . . 2 . 2 . . . . . 2 . . . . Weapon 1 | . . . . . 1 . . . . . . . . . . . . Parts Attached 250 | 7 13 4 . . 29 8 25 3 16 14 7 11 19 24 35 13 22 Power 32 | 1 2 . . . 3 1 2 . 1 . 2 . 3 1 7 4 5 Engine 14 | 1 2 . . . 1 1 2 . 1 . 1 . 1 1 2 . 1 Core 8 | . . . . . 2 . . . . . . . 2 . 1 3 . Reactor 10 | . . . . . . . . . . . 1 . . . 4 1 4 Propulsion 65 | 2 1 1 . . 8 1 4 . 3 3 3 6 3 9 12 4 5 Treads 5 | 2 1 1 . . 1 . . . . . . . . . . . . Leg 58 | . . . . . 6 1 4 . 3 3 3 6 3 9 12 4 4 Wheel 1 | . . . . . . . . . . . . . . . . . 1 Hover . | . . . . . . . . . . . . . . . . . . Flight 1 | . . . . . 1 . . . . . . . . . . . . Utility 86 | 2 5 . . . 10 2 10 2 7 8 1 4 8 9 9 2 7 Device 27 | 1 1 . . . 4 1 4 . 5 3 . . 2 1 3 . 2 Storage 9 | 1 2 . . . 1 . 1 . 1 1 1 . . . . . 1 Processor 4 | . 1 . . . . . . 1 . 1 . . 1 . . . . Hackware 31 | . . . . . 1 . 4 1 . 2 . 3 4 6 5 1 4 Protection 15 | . 1 . . . 4 1 1 . 1 1 . 1 1 2 1 1 . Artifact . | . . . . . . . . . . . . . . . . . . Weapon 67 | 2 5 3 . . 8 4 9 1 5 3 1 1 5 5 7 3 5 Energy Gun 12 | 1 1 2 . . 1 . 2 . 2 . . . . . 1 2 . Energy Cannon 8 | . 1 . . . 2 2 1 . . . 1 . . . 1 . . Ballistic Gun 19 | 1 1 . . . 2 . 5 . 2 2 . . 1 1 2 1 1 Ballistic Cannon 13 | . . 1 . . 1 . 1 . 1 . . . 1 4 . . 4 Launcher 2 | . . . . . 1 . . 1 . . . . . . . . . Special Weapon 10 | . 1 . . . . 2 . . . 1 . 1 3 . 2 . . Impact Weapon 1 | . 1 . . . . . . . . . . . . . . . . Slashing Weapon 1 | . . . . . 1 . . . . . . . . . . . . Piercing Weapon 1 | . . . . . . . . . . . . . . . 1 . . Special Melee Weapon . | . . . . . . . . . . . . . . . . . . Unidentified Prototypes 14 | . . . . . 4 . 3 . 4 . 2 . 1 . . . . Corrupted Parts 2 | . . . . . . . . . . . . . . . 1 1 . System Corruption 9 | . . . . . . . . . . . . . . . 5 4 . Parts Lost 74 | . 4 2 . . 2 2 1 . 1 7 . 2 2 6 10 13 22 Power 12 | . 1 . . . 1 . . . . . . . . 1 5 3 1 Propulsion 23 | . 1 1 . . . . . . . 3 . . 1 2 2 4 9 Utility 23 | . 1 . . . 1 1 1 . 1 3 . 1 1 3 . 3 7 Weapon 16 | . 1 1 . . . 1 . . . 1 . 1 . . 3 3 5 Highest Loss Streak 14 | . 2 2 . . 2 1 1 . 1 2 . 1 1 1 2 7 14 To Critical Strikes . | . . . . . . . . . . . . . . . . . . Average Backups 16 | 2 11 14 13 12 14 14 14 14 15 19 19 19 19 19 19 19 19 Power . | . . 1 1 1 . 1 1 1 1 1 1 1 1 . . . . Propulsion 2 | . 1 1 1 1 2 3 3 3 1 3 2 3 3 3 3 2 1 Utility 6 | 1 4 4 4 4 3 5 6 4 6 8 10 8 6 8 10 10 8 Weapon 4 | 1 4 5 5 4 5 3 2 3 3 5 4 3 3 5 3 5 5 Tool/Special . | . . . . . . . . . . . . . . . . . . Unused Backups 65 | . 8 . . 2 11 4 3 1 5 7 . 2 3 4 1 6 8 Power 11 | . 1 . . . 3 . 2 . 1 . . . . 1 . . 3 Propulsion 16 | . 1 . . . 4 . 1 . 1 4 . . 1 . . 3 1 Utility 24 | . 4 . . . 2 2 . . 3 2 . 2 . 3 1 3 2 Weapon 11 | . 2 . . 2 2 1 . 1 . 1 . . 1 . . . 1 Tool/Special 3 | . . . . . . 1 . . . . . . 1 . . . 1 Average Slot Usage (%) 97 | . 99 100 74 100 98 99 99 99 99 99 99 99 99 98 91 95 93 Engine 5 | . 14 14 14 14 2 9 7 7 6 6 2 . . 4 3 . . Core 1 | . . . . . 6 . . . . . . . 3 . . 6 . Reactor 1 | . . . . . . . . . . . 3 6 . . 5 2 7 Treads 5 | . 27 28 28 28 3 . . . . . . . . . . . . Leg 22 | . . . . . 23 27 23 23 32 32 32 33 29 28 30 29 25 Device 13 | . 9 7 14 14 16 19 11 14 13 13 13 13 11 16 10 7 12 Storage 7 | . 14 14 14 14 9 9 7 7 6 6 6 6 5 5 5 5 5 Processor 4 | . 1 . . . . . . 6 6 7 6 6 8 10 5 5 4 Hackware 7 | . . . . . . . 19 7 6 5 6 9 13 7 12 13 15 Protection 4 | . 2 6 . . 9 7 5 7 6 4 6 3 4 3 3 8 1 Energy Gun 1 | . 7 16 1 14 . . . 2 . . . . . . . . 2 Energy Cannon 3 | . 3 . . . 12 7 6 . . . 3 4 4 . 1 . . Ballistic Gun 6 | . 12 3 . . 8 9 6 15 12 10 2 2 2 1 2 9 1 Ballistic Cannon 4 | . . 4 1 14 3 6 4 . 2 4 6 6 3 10 3 . 7 Special Weapon 1 | . 1 . . . . . 1 . . 2 . 2 1 1 2 1 1 Slashing Weapon 1 | . . . . . . 2 2 2 2 . 5 1 1 2 1 . . Peak Build Rating 112 | 7 9 11 10 11 39 36 53 54 69 71 72 72 85 90 112 103 105 Average Rating 55 | 5 8 9 7 10 33 34 47 51 63 65 66 67 80 83 103 96 92 On Entrance 47 | . 7 9 10 10 11 32 36 53 52 64 65 69 67 84 82 103 93 Avg Prop Armor Cover (%) 6 | . . . . . . . . . . . . . . . . 6 9 Naked Turns . | . . . . . . . . . . . . . . . . . . Heaviest Build 110 | 12 33 34 32 32 53 51 59 58 74 74 75 75 82 93 108 103 110 Greatest Support 130 | 40 40 40 40 40 60 54 56 56 92 88 84 82 89 86 130 130 125 Greatest Overweight (x) 7 | . 1 . . . 2 1 1 1 . 1 . . . 1 1 1 7 Average Overweight (x) . | . . . . . . . . . . . . . . . . . . Largest Inventory Capacity 20 | 8 15 15 15 15 15 15 15 15 20 20 20 20 20 20 20 20 20 Average Capacity 16 | 6 12 15 15 15 15 15 15 15 15 20 20 20 20 20 20 20 19 Most Carried 20 | 6 15 15 15 15 15 15 15 15 19 20 20 20 20 20 20 20 20 Average Carried 16 | 2 11 14 15 14 14 14 14 14 15 19 19 19 19 19 19 19 19 Final Capacity 20 | 8 15 15 15 15 15 15 15 15 20 20 20 20 20 20 20 20 5 Final Carried 20 | 6 15 15 15 15 15 15 15 15 19 19 20 20 20 20 19 17 5 Scrap Suit Usage (%) 1 | . . . . . 1 . . . . . . . . . . . . Class Distribution -------------------- 16% | Mutant 15% | Tank 14% | Bothacker-Mutant 14% | Bothacker-Gunner 8% | Scavenger-Mutant 7% | Botlord-Mutant 6% | Bothacker-Tank 6% | Botlord-Gunner 5% | Gunner Dominant Class ---------------- Mutant | -10/Materials Mutant | -10/Mines Scavenger-Mutant | -10/Exiles Scavenger-Mutant | -9/Mines Tank | -8/Materials Tank | -8/Garrison Tank | -7/Factory Gunner | -7/Garrison Gunner | -6/Factory Bothacker-Gunner | -6/Garrison Bothacker-Mutant | -6/Factory Bothacker-Gunner | -6/Garrison Bothacker-Gunner | -5/Factory Bothacker-Gunner | -5/Garrison Botlord-Mutant | -4/Factory Botlord-Mutant | -4/Garrison Botlord-Gunner | -4/Factory Resources | -11 -10 -10 -10 -9 -8 -8 -7 -7 -6 -6 -6 -6 -5 -5 -4 -4 -4 ----------- Run | Yrd Mat Min Exi Min Mat Gar Fac Gar Fac Gar Fac Gar Fac Gar Fac Gar Fac Matter Collected 15108 | 300 877 46 7 22 1010 594 1340 350 1213 1014 300 881 793 2430 1894 673 1364 Remotely 358 | . . . . . . . . . . 181 65 47 . . 65 . . Salvage Created 13341 | 147 1052 36 . . 1227 466 1015 345 1658 1073 242 812 723 1388 1448 683 1026 Parts 659 | 10 51 6 . . 57 30 57 22 90 44 15 30 40 65 84 28 30 Haulers Intercepted 10 | . 2 . . . 3 . 2 . 2 . . . . . . . 1 Recyclers Shooed 16 | 1 2 . . . 2 . 2 . 3 . . . . . 2 . 4 Parts Field Recycled . | . . . . . . . . . . . . . . . . . . Retrieved Matter . | . . . . . . . . . . . . . . . . . . Parts Self-Destructed . | . . . . . . . . . . . . . . . . . . Prevented . | . . . . . . . . . . . . . . . . . . Parts Restored 1 | . . . . . . . 1 . . . . . . . . . . Broken 1 | . . . . . . . 1 . . . . . . . . . . Kills | -11 -10 -10 -10 -9 -8 -8 -7 -7 -6 -6 -6 -6 -5 -5 -4 -4 -4 ------- Run | Yrd Mat Min Exi Min Mat Gar Fac Gar Fac Gar Fac Gar Fac Gar Fac Gar Fac Combat Hostiles Destroyed 251 | . 16 3 . . 21 13 16 12 20 29 5 17 16 31 27 13 12 Melee 1 | . . . . . . . . . . . . . . . 1 . . Guns 102 | . 13 3 . . 5 3 4 9 14 20 . 3 6 3 9 8 2 Cannons 129 | . 2 . . . 15 10 11 . 5 9 2 14 10 28 16 . 7 AOE 15 | . . . . . . . 1 3 1 . 3 . . . 1 4 2 Classes Destroyed 18 | 2 4 2 . . 6 1 . . . . . 1 . 1 1 . . Worker 16 | . . . . . 2 . 2 . 4 . 1 . 2 . 4 . 1 Builder 8 | . . . . . 1 . 1 . 3 . 1 . . . . . 2 Tunneler 6 | 3 . . . . . . . . 2 . 1 . . . . . . Hauler 10 | . 2 . . . 3 . 2 . 2 . . . . . . . 1 Recycler 16 | 1 3 . . . 1 . 4 . 4 . . . . . . . 3 Mechanic 1 | . . . . . 1 . . . . . . . . . . . . Operator 3 | . 2 . . . 1 . . . . . . . . . . . . Watcher 2 | . 1 . . . . . . . . . . . . 1 . . . Swarmer 67 | . . 2 . . 2 3 1 7 7 15 . 2 6 14 5 3 . Saboteur 1 | . . . . . . . . . . . . . . . 1 . . Grunt 99 | . 16 . . . 13 2 4 2 7 6 4 9 3 9 12 7 5 Brawler 4 | . . . . . 1 . 1 1 . 1 . . . . . . . Duelist 4 | . . . . . . . . . . . . 1 . . 3 . . Sentry 34 | . . . . . 4 5 3 2 . 7 1 2 2 5 1 1 1 Demolisher 1 | . . 1 . . . . . . . . . . . . . . . Specialist 4 | . . . . . . . . . . . . . . 4 . . . Hunter 8 | . . . . . 1 . . . 1 . . . . . 2 . 4 Programmer 30 | . . . . . . 3 7 . 5 . . 3 5 . 3 2 2 Best Kill Streak 10 | 2 3 2 . . 7 3 7 4 7 10 4 8 5 4 6 4 9 Combat Bots Only 10 | . 2 2 . . 7 3 2 4 7 10 4 8 5 4 5 4 3 Max Kills in Single Turn 3 | 1 1 2 . . 2 2 2 2 2 2 3 1 2 1 2 1 1 Gunslinging 1 | . . 1 . . . . . . . . . . . . . . . Exploded 3 | . . . . . . . 1 2 1 . 3 . . . 1 1 1 Melee 1 | . . . . . . . . . . . . . . . 1 . . Uniques/NPCs Destroyed . | . . . . . . . . . . . . . . . . . . Combat | -11 -10 -10 -10 -9 -8 -8 -7 -7 -6 -6 -6 -6 -5 -5 -4 -4 -4 -------- Run | Yrd Mat Min Exi Min Mat Gar Fac Gar Fac Gar Fac Gar Fac Gar Fac Gar Fac Hostile Shots Fired 1935 | . 98 12 . . 108 51 178 76 72 214 29 126 94 177 215 156 329 Missed 650 | . 17 3 . . 22 12 61 26 27 65 17 52 35 50 90 44 129 Hits 1285 | . 81 9 . . 86 39 117 50 45 149 12 74 59 127 125 112 200 Melee 7 | . . . . . . . 2 1 . . . . . . 4 . . Projectile 1278 | . 81 9 . . 86 39 115 49 45 149 12 74 59 127 121 112 200 AOE 10 | . . 7 . . . . . . . . . . . . 3 . . Critical Strikes 37 | . 1 . . . 3 2 4 1 1 2 . 1 3 2 8 4 5 Part Disruptions 3 | . . . . . . . . . . . . . . . . . 3 Damage Taken 19043 | . 1020 271 . . 1185 543 1314 508 813 1542 255 1025 997 1952 2716 1819 3083 Core 2496 | . 175 . . . 155 64 107 29 134 163 36 140 92 258 211 116 816 Absorbed by Shields 1008 | . . . . . . . 76 52 . 10 . 60 . 86 72 252 400 Redirected to Shielding 150 | . . . . . 22 24 . . 44 60 . . . . . . . Ignored by Resistances 233 | . . . . . . . . . . 95 4 37 7 90 . . . Regen/Repaired (Parts) 925 | . 171 . . . 18 . 143 53 210 . . . 282 . 48 . . Core Remaining (%) 63 | 100 . . . 30 . 60 . 80 . . . 44 . 65 . . . Volleys Fired 943 | 10 90 6 . . 76 35 72 29 50 60 10 64 90 106 125 40 80 Largest 3 | 2 2 2 . . 3 3 3 3 3 3 3 3 3 3 3 3 3 Hottest 225 | 60 140 90 . . 161 173 136 131 131 100 105 155 108 153 225 148 200 Shots Fired 1939 | 20 167 10 . . 217 104 163 62 126 154 19 131 139 241 158 76 152 Gun 828 | 20 125 10 . . 82 36 66 54 90 96 2 29 31 43 48 59 37 Cannon 921 | . 27 . . . 132 64 76 . 36 51 13 86 88 183 80 6 79 Launcher 29 | . . . . . 3 4 . 6 . . . . . . . 9 7 Special 161 | . 15 . . . . . 21 2 . 7 4 16 20 15 30 2 29 Kinetic 1266 | 10 86 . . . 103 63 96 46 113 147 8 73 63 226 95 50 87 Thermal 454 | 10 81 . . . 102 37 43 8 13 . 7 42 56 . 15 11 29 Explosive 29 | . . . . . 3 4 . 6 . . . . . . . 9 7 Electromagnetic 46 | . . 10 . . 9 . 3 . . . . . . . 18 6 . Robot Hit Streak 18 | 4 16 12 . . 11 6 10 8 18 10 9 9 9 14 14 6 11 Robot Miss Streak 8 | 5 2 2 . . 5 3 7 8 4 4 1 5 4 8 4 4 7 Penetration Max 1 | . . . . . . . . . 1 1 . . . 1 1 . 1 Secondary Targets 2 | . 1 1 . . . . . . . . . . . . . . . Max Gunslinging Chain 1 | . 1 1 . . . . . . . . . . . . . . . Capacitor 15 | . . . . . . . . . . . . . . . 15 . . Shots Hit Robots 1166 | 7 115 10 . . 118 58 114 35 88 87 12 82 69 124 98 42 107 Core Hits 616 | 4 44 9 . . 56 17 58 35 50 56 11 56 21 49 47 31 72 Critical Kills 33 | . 1 . . . 3 . . . . . . . 3 22 4 . . Critical Parts Destroyed 36 | . . . . . . . . . 2 . . . 3 27 4 . . Critical Strikes 102 | . 1 . . . 5 . 2 . 3 4 . 1 7 57 13 . 9 Burn 2 | . . . . . . . . . . . . . . . . . 2 Meltdown 2 | . . . . . 2 . . . . . . . . . . . . Destroy 74 | . 1 . . . 1 . . . 2 . . . 6 56 8 . . Blast 23 | . . . . . 2 . 2 . 1 4 . 1 1 1 5 . 6 Impale 1 | . . . . . . . . . . . . . . . . . 1 Melee Attacks 202 | . 14 . . . 13 6 18 18 41 6 17 21 13 14 4 16 1 Impact 14 | . 14 . . . . . . . . . . . . . . . . Slashing 167 | . . . . . 13 6 18 18 41 6 17 21 13 14 . . . Piercing 21 | . . . . . . . . . . . . . . . 4 16 1 Sneak Attacks 20 | . . . . . 1 . 2 . 11 . . . 2 . 2 1 1 Combat Hostiles . | . . . . . . . . . . . . . . . . . . Follow-up Attacks . | . . . . . . . . . . . . . . . . . . Damage Inflicted 29312 | 92 1624 112 . . 2570 1398 2545 1192 3104 2139 673 2150 1513 2042 3551 1676 2931 Guns 10408 | 92 1220 103 . . 726 362 926 606 1611 1311 . 519 325 481 735 803 588 Cannons 13788 | . 324 . . . 1698 1004 1327 . 382 828 216 1255 935 1561 2366 152 1740 Explosions 2694 | . . . . . 28 32 99 586 165 . 457 . . . 226 562 539 Melee 2295 | . 62 . . . 112 . 140 . 946 . . 376 253 . 193 149 64 Ramming 127 | . 18 9 . . 6 . 53 . . . . . . . 31 10 . Kinetic 18101 | 59 981 . . . 1061 794 1574 476 1817 2139 52 1151 826 2042 2516 773 1840 Thermal 5661 | 33 563 . . . 1271 572 722 130 272 . 164 623 434 . 359 30 488 Explosive 2395 | . . . . . 28 32 . 586 69 . 367 . . . 226 562 525 Electromagnetic 733 | . . 103 . . 92 . 56 . . . 90 . . . 226 152 14 Impact 62 | . 62 . . . . . . . . . . . . . . . . Slashing 1827 | . . . . . 112 . 140 . 946 . . 376 253 . . . . Piercing 406 | . . . . . . . . . . . . . . . 193 149 64 Highest Corruption 21 | . 1 1 1 1 3 5 6 6 3 3 4 7 2 2 9 13 21 Average Corruption 4 | . 1 1 1 1 3 4 3 6 2 3 3 6 1 2 4 12 14 Corruption Purged . | . . . . . . . . . . . . . . . . . . Corruption Blocked . | . . . . . . . . . . . . . . . . . . Effects 409 | . 2 4 5 5 49 26 19 31 27 21 18 35 6 29 37 51 44 Message Errors 93 | . 1 1 1 2 11 5 9 4 4 4 2 6 2 9 8 13 11 Matter Fused 104 | . . 1 1 . 12 8 3 7 8 4 7 8 2 5 10 18 10 Heat Flow Errors 47 | . . 1 . . 12 3 2 2 3 5 6 3 . 1 3 4 2 Energy Discharges 53 | . . . 2 2 3 3 1 5 5 3 2 6 1 8 4 3 5 Parts Rejected 9 | . . . . . 1 1 1 1 1 . . . . . 2 1 1 Parts Fused 3 | . . . . . 1 . . . . . . . . . 1 1 . Data Loss (minor) 40 | . 1 1 1 1 4 3 3 5 2 1 . 5 . 3 1 6 3 Data Loss (major) 23 | . . . . . 2 . . 3 2 1 . 3 . 2 4 4 2 Misfires 13 | . . . . . 3 3 . 1 1 2 1 . . . 1 . 1 Alerts 11 | . . . . . . . . 3 . 1 . 2 . 1 1 1 2 Misdirections 1 | . . . . . . . . . . . . . . . . . 1 Weapon Failures 12 | . . . . . . . . . 1 . . 2 1 . 2 . 6 Overload Shots 3 | . . . . . . . . . . . . . . . 3 . . Overflow Damage 1237 | . 9 . . . 121 74 96 10 320 . . 50 158 6 265 12 116 Projectiles 690 | . 7 . . . 78 74 55 . 38 . . . 106 6 213 . 113 Explosions 116 | . . . . . . . . 10 39 . . . . . 52 12 3 Melee 431 | . 2 . . . 43 . 41 . 243 . . 50 52 . . . . Knockbacks 77 | . . . . . 5 4 6 . 5 3 1 3 6 12 10 . 22 Impact 1 | . . . . . . . 1 . . . . . . . . . . Kinetic 71 | . . . . . 5 4 5 . 4 3 1 3 6 11 9 . 20 Secondary 5 | . . . . . . . . . 1 . . . . 1 1 . 2 Self-Inflicted Damage 357 | . 16 . . . . 15 . 47 73 . 72 . . . 109 . 25 Shots 10 | . . . . . . 1 . 2 1 . 3 . . . 1 . 2 Rammed 6 | . 3 1 . 1 1 . . . . . . . . . . . . Targets Rammed 16 | . 3 1 . 1 4 . 5 . . . . . . . 1 1 . Kicked 10 | . . . . . 3 . 5 . . . . . . . 1 1 . Crushed . | . . . . . . . . . . . . . . . . . . Highest Temperature 592 | . 308 218 . . 402 237 195 52 185 312 242 255 324 202 592 303 205 Average Temperature 79 | . 61 75 . . 125 71 40 35 49 95 86 60 103 31 95 92 32 Received Heat Transfer 3706 | . 543 . . . 567 117 280 60 135 369 90 315 54 546 276 256 98 Effects 15 | . . . . . 4 . . . . . . . 1 . 10 . . Shutdowns 3 | . . . . . 2 . . . . . . . . . 1 . . Energy Bleed 1 | . . . . . . . . . . . . . . . 1 . . Interference 10 | . . . . . 1 . . . . . . . 1 . 8 . . Short Circuit 1 | . . . . . 1 . . . . . . . . . . . . Siege Activations . | . . . . . . . . . . . . . . . . . . Martial Activations . | . . . . . . . . . . . . . . . . . . Shielding Activations . | . . . . . . . . . . . . . . . . . . Robots Disrupted . | . . . . . . . . . . . . . . . . . . Combat Hostiles . | . . . . . . . . . . . . . . . . . . Robots Corrupted 2 | . 1 . . . . . . . . . . . . . . 1 . Combat Hostiles 2 | . 1 . . . . . . . . . . . . . . 1 . Parts Fried 3 | . 1 . . . . . . . . . . . . . 1 1 . Impact Corruptions 1 | . 1 . . . . . . . . . . . . . . . . Robots Melted 3 | . . . . . 2 . . . . . . . . . . . 1 Combat Hostiles 2 | . . . . . 1 . . . . . . . . . . . 1 Parts Melted 16 | . . . . . 9 2 1 . . . 1 . 1 . 2 . . Heat Transferred 9300 | 75 1216 . . . 2294 1023 1001 98 195 . 250 912 650 . 520 37 1029 Parts Sabotaged . | . . . . . . . . . . . . . . . . . . Parts Stolen . | . . . . . . . . . . . . . . . . . . Parts Stripped . | . . . . . . . . . . . . . . . . . . Power Chain Reactions . | . . . . . . . . . . . . . . . . . . Alert | -11 -10 -10 -10 -9 -8 -8 -7 -7 -6 -6 -6 -6 -5 -5 -4 -4 -4 ------- Run | Yrd Mat Min Exi Min Mat Gar Fac Gar Fac Gar Fac Gar Fac Gar Fac Gar Fac Maximum Alert Level 5 | . 1 . . . 2 3 2 3 2 4 2 4 2 5 3 3 2 Low Security (%) 26 | 100 77 100 . 100 57 . 21 . 3 . . . 87 . . . . Level 1 19 | . 22 . . . 30 13 43 5 47 . . . 9 23 12 . 5 Level 2 32 | . . . . . 12 65 35 64 49 28 100 41 3 14 50 41 94 Level 3 15 | . . . . . . 20 . 29 . 56 . 48 . 24 37 58 . Level 4 3 | . . . . . . . . . . 15 . 10 . 15 . . . Level 5 2 | . . . . . . . . . . . . . . 22 . . . High Security . | . . . . . . . . . . . . . . . . . . Max Security . | . . . . . . . . . . . . . . . . . . Peak Influence 2033 | 10 247 108 . . 461 832 668 794 605 1231 659 1121 588 2033 1066 908 536 Initial 1066 | . . 93 . . . 295 436 357 416 421 646 415 588 203 1066 400 471 Average 474 | 1 82 53 . . 215 551 365 573 410 823 589 757 148 980 664 725 463 Influence Increases 11649 | 20 645 95 . . 1145 557 1006 447 990 900 286 746 644 2050 896 688 534 Destroy 0b10 Robot/C 5500 | . 320 60 . . 600 260 520 240 400 580 100 360 320 700 540 260 240 Destroy 0b10 Robot/NC 350 | 20 40 . . . 65 . 50 . 75 . 15 5 10 5 20 5 40 Destroy Leader 852 | . 86 20 . . 164 . 156 . 94 40 20 20 50 30 80 30 62 Allied During Kill 187 | . . . . . 39 . 66 . . 1 . 9 32 34 6 . . Successful Hack 361 | . 38 . . . 68 7 55 . 104 14 . 14 48 . 13 . . Select Force Hacks 180 | . 60 . . . 60 . 30 . . . . . . . 30 . . Disable Machine 510 | . . . . . 30 . 90 . 120 15 105 . 15 30 30 . 75 Anti-Garrison Action 1850 | . . . . . . 150 . 100 . 150 . 250 . 1000 . 200 . Destroy Structure 959 | . 26 . . . 44 65 39 77 92 40 46 43 94 101 102 88 102 Partial Spotted 45 | . 15 . . . . . . . . 15 . . 15 . . . . Lose Combat Pursuer 855 | . 60 15 . . 75 75 . 30 105 45 . 45 60 150 75 105 15 Influence Decreases 11316 | 20 406 334 . . 690 180 1328 163 1182 271 923 219 1474 308 2357 362 1099 Entered New Map 4365 | . . 146 . . . 160 396 153 378 181 585 179 533 88 967 172 427 Time Decay 4321 | 20 376 168 . . 610 . 702 . 644 . 318 . 526 . 565 . 392 Lost Part 730 | . 30 20 . . 20 20 10 . 10 70 . 20 20 60 100 130 220 Lost Ally 800 | . . . . . 60 . 70 10 . 20 20 20 20 160 300 60 60 Purge Threat 1100 | . . . . . . . 150 . 150 . . . 375 . 425 . . Squads Dispatched 58 | . 5 . . . 8 . 11 . 7 . 3 . 7 . 8 . 9 Investigation 10 | . 3 . . . 3 . 2 . . . . . . . 1 . 1 Extermination 20 | . . . . . . . 8 . 4 . 1 . 3 . 3 . 1 Reinforcement 15 | . 2 . . . 2 . 1 . 2 . 1 . 3 . 1 . 3 Assault 6 | . . . . . . . . . 1 . 1 . . . 3 . 1 Garrison 7 | . . . . . 3 . . . . . . . 1 . . . 3 Intercept . | . . . . . . . . . . . . . . . . . . Searches Triggered . | . . . . . . . . . . . . . . . . . . Construction Impeded 3 | . . . . . 1 . . . 1 . . . . . 1 . . Haulers Reinforced 2 | . . . . . . . 1 . 1 . . . . . . . . Active Scanning Responses . | . . . . . . . . . . . . . . . . . . Cargo Convoy Interrupts . | . . . . . . . . . . . . . . . . . . Alert ID Control Effect 22 | . . . . . . . . . . . 1 4 4 5 7 . 1 Stealth | -11 -10 -10 -10 -9 -8 -8 -7 -7 -6 -6 -6 -6 -5 -5 -4 -4 -4 --------- Run | Yrd Mat Min Exi Min Mat Gar Fac Gar Fac Gar Fac Gar Fac Gar Fac Gar Fac Distress Signals 17 | . 5 . . . 2 . 3 . 2 . . . . . 3 . 2 Communications Jammed 44 | . . . . . . . . . . . . . . . . . 44 Distress Signals 39 | . . . . . . . . . . . . . . . . . 39 Times Spotted 465 | . 34 5 . . 47 15 33 15 36 35 12 38 34 55 54 16 36 Peak Tracking Total 10 | . 4 3 . . 6 3 4 4 6 10 5 5 6 5 7 8 8 Tactical Retreats 40 | . 3 1 . . 3 3 . 2 4 2 . 3 3 6 4 5 1 Traps | -11 -10 -10 -10 -9 -8 -8 -7 -7 -6 -6 -6 -6 -5 -5 -4 -4 -4 ------- Run | Yrd Mat Min Exi Min Mat Gar Fac Gar Fac Gar Fac Gar Fac Gar Fac Gar Fac Traps Triggered 24 | . 2 . . . . 1 2 . . 3 1 7 . 7 . 1 . Indirectly . | . . . . . . . . . . . . . . . . . . Trap Hack Attempts . | . . . . . . . . . . . . . . . . . . Triggered . | . . . . . . . . . . . . . . . . . . Disarmed . | . . . . . . . . . . . . . . . . . . Reprogrammed . | . . . . . . . . . . . . . . . . . . Reused . | . . . . . . . . . . . . . . . . . . Traps Extracted . | . . . . . . . . . . . . . . . . . . Installed . | . . . . . . . . . . . . . . . . . . Triggered . | . . . . . . . . . . . . . . . . . . Most Traps Carried 1 | . . 1 1 1 1 . . . . . . . . . . . . Machines | -11 -10 -10 -10 -9 -8 -8 -7 -7 -6 -6 -6 -6 -5 -5 -4 -4 -4 ---------- Run | Yrd Mat Min Exi Min Mat Gar Fac Gar Fac Gar Fac Gar Fac Gar Fac Gar Fac Machines Disabled 50 | . . . . . 2 2 6 2 8 4 7 3 1 6 2 2 5 Max in Single Turn 5 | . . . . . 1 1 5 1 4 1 4 1 1 1 1 1 2 Garrison Access 1 | . . . . . . . . . . . . . . . 1 . . Garrison Relay 16 | . . . . . . 2 . 2 . 3 . 3 . 4 . 2 . Machines Repaired . | . . . . . . . . . . . . . . . . . . Machines Dismantled 16 | . . . . . . 2 . 2 . 3 . 3 . 4 . 2 . Machines Sabotaged . | . . . . . . . . . . . . . . . . . . Overloaded Fab Kills . | . . . . . . . . . . . . . . . . . . Hacking | -11 -10 -10 -10 -9 -8 -8 -7 -7 -6 -6 -6 -6 -5 -5 -4 -4 -4 --------- Run | Yrd Mat Min Exi Min Mat Gar Fac Gar Fac Gar Fac Gar Fac Gar Fac Gar Fac Machines Accessed 81 | . 9 . 4 . 12 2 15 . 13 2 2 1 9 2 7 . 3 Terminals 45 | . 6 . . . 7 2 7 . 6 2 1 1 6 2 4 . 1 Fabricators 6 | . . . . . . . 1 . 2 . . . 1 . 1 . 1 Repair Stations 7 | . 1 . . . 1 . 2 . 2 . . . 1 . . . . Recycling Units 9 | . 2 . . . 2 . 2 . 2 . . . . . 1 . . Scanalyzers 3 | . . . . . 1 . 2 . . . . . . . . . . Garrison Access 7 | . . . . . 1 . 1 . 1 . 1 . 1 . 1 . 1 Total Hacks 231 | . 34 . 30 . 45 3 44 . 28 2 3 3 16 4 14 . 5 Successful 150 | . 28 . 30 . 35 1 20 . 14 1 3 1 6 1 8 . 2 Failed 79 | . 6 . . . 9 2 23 . 14 1 . 2 10 3 6 . 3 Catastrophic 13 | . . . . . . 1 4 . 3 1 . . 3 . . . 1 Database Lockouts 2 | . . . . . 1 . 1 . . . . . . . . . . Manual 82 | . 22 . . . 17 . 18 . 10 . . . 10 . 5 . . Terminals 119 | . 24 . . . 21 3 24 . 14 2 1 3 12 4 9 . 2 Fabricators 11 | . . . . . . . 2 . 3 . . . 1 . 3 . 2 Repair Stations 18 | . 3 . . . 2 . 5 . 6 . . . 2 . . . . Recycling Units 20 | . 7 . . . 3 . 5 . 4 . . . . . 1 . . Scanalyzers 23 | . . . . . 16 . 7 . . . . . . . . . . Garrison Access 10 | . . . . . 3 . 1 . 1 . 2 . 1 . 1 . 1 Terminal Hacks 64 | . 10 . 30 . 5 1 5 . 4 1 1 1 2 1 3 . . Record 30 | . . . 30 . . . . . . . . . . . . . . Part Schematic 2 | . 1 . . . . . 1 . . . . . . . . . . Robot Analysis 3 | . 2 . . . 1 . . . . . . . . . . . . Prototype ID Bank 3 | . 1 . . . 1 . . . 1 . . . . . . . . Open Door 1 | . . . . . . 1 . . . . . . . . . . . Open DSF 1 | . . . . . . . . . . . 1 . . . . . . Emergency Access Points 3 | . . . . . 1 . . . . 1 . . . 1 . . . Unreport Threat 3 | . . . . . . . 1 . 1 . . . . . 1 . . Locate Traps 7 | . . . . . . . 2 . 2 . . . 2 . 1 . . Transport Status 2 | . 2 . . . . . . . . . . . . . . . . Garrison Status 1 | . . . . . 1 . . . . . . . . . . . . Hauler Manifests 3 | . 2 . . . 1 . . . . . . . . . . . . Registered Prototypes 1 | . 1 . . . . . . . . . . . . . . . . Zone Layout 3 | . 1 . . . . . 1 . . . . . . . 1 . . Patrol Navigation 1 | . . . . . . . . . . . . 1 . . . . . Fabricator Hacks 6 | . . . . . . . 2 . 1 . . . . . 2 . 1 Network Status 3 | . . . . . . . 1 . . . . . . . 1 . 1 Load Schematic 1 | . . . . . . . 1 . . . . . . . . . . Build 2 | . . . . . . . . . 1 . . . . . 1 . . Repair Station Hacks 12 | . 2 . . . 2 . 1 . 5 . . . 2 . . . . Scan Component 7 | . 1 . . . 1 . 1 . 3 . . . 1 . . . . Repair 5 | . 1 . . . 1 . . . 2 . . . 1 . . . . Recycling Unit Hacks 4 | . 2 . . . 1 . . . 1 . . . . . . . . Retrieve Components 4 | . 2 . . . 1 . . . 1 . . . . . . . . Scanalyzer 17 | . . . . . 14 . 3 . . . . . . . . . . Insert Component 7 | . . . . . 6 . 1 . . . . . . . . . . Analyze 7 | . . . . . 7 . . . . . . . . . . . . Retrieve Study 3 | . . . . . 1 . 2 . . . . . . . . . . Garrison Access Hacks 8 | . . . . . 1 . 1 . 1 . 2 . 1 . 1 . 1 Unlock Access 6 | . . . . . 1 . 1 . 1 . 1 . 1 . 1 . . Coupler Status 2 | . . . . . . . . . . . 1 . . . . . 1 Unauthorized Hacks 39 | . 14 . . . 12 . 8 . 2 . . . 1 . 2 . . Terminals 30 | . 9 . . . 10 . 7 . 2 . . . 1 . 1 . . Track 1 | . . . . . 1 . . . . . . . . . . . . Botnet 12 | . 4 . . . 3 . 2 . 1 . . . 1 . 1 . . Skim 17 | . 5 . . . 6 . 5 . 1 . . . . . . . . Fabricators . | . . . . . . . . . . . . . . . . . . Repair Stations 1 | . 1 . . . . . . . . . . . . . . . . Patch 1 | . 1 . . . . . . . . . . . . . . . . Recycling Units 8 | . 4 . . . 2 . 1 . . . . . . . 1 . . Reject 2 | . 2 . . . . . . . . . . . . . . . . Tunnel 6 | . 2 . . . 2 . 1 . . . . . . . 1 . . Scanalyzers . | . . . . . . . . . . . . . . . . . . Garrison Access . | . . . . . . . . . . . . . . . . . . Data Cores Recovered . | . . . . . . . . . . . . . . . . . . Used . | . . . . . . . . . . . . . . . . . . Hacking Detections 69 | . 8 . . . 10 1 15 . 13 1 1 1 9 2 6 . 2 Full Trace Events 3 | . . . . . 1 1 . . . . . . . . . . 1 Feedback Events . | . . . . . . . . . . . . . . . . . . Feedback Blocked . | . . . . . . . . . . . . . . . . . . Robot Schematics Acquired . | . . . . . . . . . . . . . . . . . . Robots Built . | . . . . . . . . . . . . . . . . . . Authchips . | . . . . . . . . . . . . . . . . . . Time . | . . . . . . . . . . . . . . . . . . Total Robot Build Rating . | . . . . . . . . . . . . . . . . . . Part Schematics Acquired 8 | . 1 . . . 6 . 1 . . . . . . . . . . Parts Built 4 | . . . . . . . . . 2 . . . . . 2 . . Authchips . | . . . . . . . . . . . . . . . . . . Time 223 | . . . . . . . . . 106 . . . . . 117 . . Total Part Build Rating 26 | . . . . . . . . . 12 . . . . . 14 . . Part Studies Acquired 2 | . . . . . . . 2 . . . . . . . . . . Parts Repaired 5 | . 1 . . . 1 . . . 2 . . . 1 . . . . Time 121 | . 26 . . . 26 . . . 44 . . . 25 . . . . Parts Recycled . | . . . . . . . . . . . . . . . . . . Recycled Matter . | . . . . . . . . . . . . . . . . . . Retrieved Matter . | . . . . . . . . . . . . . . . . . . Retrieved Components 21 | . 11 . . . . . . . 10 . . . . . . . . Parts Scanalyzed 6 | . . . . . 6 . . . . . . . . . . . . Part Schematics Acquired 6 | . . . . . 6 . . . . . . . . . . . . Parts Damaged . | . . . . . . . . . . . . . . . . . . Bothacking | -11 -10 -10 -10 -9 -8 -8 -7 -7 -6 -6 -6 -6 -5 -5 -4 -4 -4 ------------ Run | Yrd Mat Min Exi Min Mat Gar Fac Gar Fac Gar Fac Gar Fac Gar Fac Gar Fac Used RIF Installer 7 | . . . . . . 2 . 1 . 1 . 1 . 1 . 1 . Command Fork 1 | . . . . . . . . . . 1 . . . . . . . Zone Cloak 1 | . . . . . . . . . . . . . . 1 . . . Patrol Navigation 1 | . . . . . . 1 . . . . . . . . . . . Alert ID Control 1 | . . . . . . . . 1 . . . . . . . . . Structural Interface 1 | . . . . . . . . . . . . . . . . 1 . Autoassimilate 1 | . . . . . . . . . . . . 1 . . . . . Robots Hacked 77 | . . . . . . . 11 . . 5 4 10 7 11 15 . 14 Non-combat 16 | . . . . . . . 4 . . . . . 1 . 7 . 4 Combat 61 | . . . . . . . 7 . . 5 4 10 6 11 8 . 10 Autoassimilated 8 | . . . . . . . . . . . . . . 4 2 . 2 Robot Hacks Applied 84 | . . . . . . . 11 . . 5 4 12 11 9 18 . 14 parse_system 2 | . . . . . . . 1 . . . . . . . . . 1 find_chute 1 | . . . . . . . 1 . . . . . . . . . . map_walls 1 | . . . . . . . . . . . . . . . 1 . . randomize_corridors 1 | . . . . . . . . . . . . . . . . . 1 drop_inventory 3 | . . . . . . . . . . . . . . . 3 . . purge_threat 5 | . . . . . . . . . . . . . 3 . 2 . . disarm_traps 1 | . . . . . . . . . . . . . 1 . . . . reprogram_traps 1 | . . . . . . . . . . . . . . . 1 . . map_route 3 | . . . . . . . . . . . . . . . 1 . 2 scatter_targeting 12 | . . . . . . . 1 . . . 1 3 3 1 . . 3 broadcast_data 1 | . . . . . . . . . . . . . . . 1 . . disrupt_area 1 | . . . . . . . . . . . . . . . 1 . . overload_power 1 | . . . . . . . . . . . . . . . . . 1 amplify_resonance 16 | . . . . . . . 2 . . 2 1 3 1 3 3 . 1 disable_weapons 8 | . . . . . . . 2 . . 1 . 2 . 1 1 . 1 go_dormant 1 | . . . . . . . . . . . . 1 . . . . . overwrite_iff 6 | . . . . . . . . . . 1 2 1 . . . . 2 streamctrl_high 1 | . . . . . . . . . . 1 . . . . . . . formatsys_low 4 | . . . . . . . 2 . . . . . . . 2 . . formatsys_high 15 | . . . . . . . 2 . . . . 2 3 4 2 . 2 Relay Couplers Released 73 | . . . . . . 8 . 9 . 13 . 13 . 18 2 10 . Machine Destruction 73 | . . . . . . 8 . 9 . 13 . 13 . 18 2 10 . Attached 30 | . . . . . . . 4 1 . 2 . 3 4 6 5 1 4 Fabnet Peak Effective % . | . . . . . . . . . . . . . . . . . . Robots Rewired 15 | . . . . . . 2 . . . . . . . 10 . 3 . Allies Hacked 4 | . . . . . . . . 1 . . . . 1 . 1 1 . Hacks Repelled . | . . . . . . . . . . . . . . . . . . Allies | -11 -10 -10 -10 -9 -8 -8 -7 -7 -6 -6 -6 -6 -5 -5 -4 -4 -4 -------- Run | Yrd Mat Min Exi Min Mat Gar Fac Gar Fac Gar Fac Gar Fac Gar Fac Gar Fac Total Allies 54 | . . . . 3 . 2 4 . . 2 2 3 4 18 7 3 6 Largest Group 12 | . . . . 3 3 2 4 1 . 1 2 1 3 11 12 3 2 Highest-Rated Group 486 | . . . . 40 40 56 111 23 . 29 76 32 117 437 486 144 92 Highest-Rated Ally 49 | . . . . 16 16 31 32 23 . 29 47 32 49 49 49 48 47 Total Orders 18 | . . . . . . . 2 9 . . . 2 2 2 1 . . STAY 10 | . . . . . . . . 7 . . . 1 1 1 . . . FOLLOW 3 | . . . . . . . . . . . . 1 1 1 . . . AID 5 | . . . . . . . 2 2 . . . . . . 1 . . Ally Attacks 326 | . . . . . 66 . 53 . . 8 8 26 25 80 43 2 15 Total Damage 6610 | . . . . . 676 . 1155 . . 148 192 931 616 1288 1215 91 298 Kills 52 | . . . . . 13 . 11 . . . 1 5 4 9 7 . 2 Allies Corrupted 2 | . . . . . . . . . . . . . . . 1 . 1 Allies Melted 2 | . . . . . . . . . . . . . . . 2 . . Intel | -11 -10 -10 -10 -9 -8 -8 -7 -7 -6 -6 -6 -6 -5 -5 -4 -4 -4 ------- Run | Yrd Mat Min Exi Min Mat Gar Fac Gar Fac Gar Fac Gar Fac Gar Fac Gar Fac Active Infowar (turns) 16278 | 85 1510 201 1122 858 1908 652 729 920 1309 432 490 1110 1031 1871 1290 . 760 Optics 187 | . . . . . . . . . . 187 . . . . . . . Terrain 862 | . . . . . . . . . . . . . 860 2 . . . Seismic 14968 | 85 1510 201 1122 858 1908 652 729 920 1309 245 490 1110 670 1869 1290 . . Jamming 760 | . . . . . . . . . . . . . . . . . 760 Robot Analysis Total 3 | . 2 . . . 1 . . . . . . . . . . . . Derelict Logs Recovered 1 | . . . . 1 . . . . . . . . . . . . . Drone Launches . | . . . . . . . . . . . . . . . . . . Drone Recoveries . | . . . . . . . . . . . . . . . . . . Exploration | -11 -10 -10 -10 -9 -8 -8 -7 -7 -6 -6 -6 -6 -5 -5 -4 -4 -4 ------------- Run | Yrd Mat Min Exi Min Mat Gar Fac Gar Fac Gar Fac Gar Fac Gar Fac Gar Fac Turns Passed 26126 | 163 2356 390 1122 858 2284 1043 3024 1092 2339 1080 716 1398 1476 2887 1682 1290 926 Spaces Moved 15271 | 76 1106 223 693 534 1152 541 1865 663 1699 646 497 831 961 1641 973 725 445 Core 11 | 4 . . . . . . . . . . . . . . . . 7 Treads 2768 | 72 1106 223 693 534 140 . . . . . . . . . . . . Legs 12481 | . . . . . 1012 541 1865 663 1699 646 497 831 961 1641 973 725 427 Wheels 11 | . . . . . . . . . . . . . . . . . 11 Hover . | . . . . . . . . . . . . . . . . . . Flight . | . . . . . . . . . . . . . . . . . . Fastest Speed 50 | 50 160 160 160 160 120 120 105 113 108 108 114 114 120 114 115 120 50 Average Speed 129 | 154 160 160 160 160 131 128 127 118 109 115 117 116 120 129 115 136 131 Slowest Speed 260 | 160 240 160 160 160 260 190 190 183 110 186 120 120 120 190 188 190 260 Overloaded Moves . | . . . . . . . . . . . . . . . . . . Propulsion Burnouts . | . . . . . . . . . . . . . . . . . . Robots Hopped . | . . . . . . . . . . . . . . . . . . Potential Cave-ins . | . . . . . . . . . . . . . . . . . . Cave-ins Triggered . | . . . . . . . . . . . . . . . . . . Exploration Rate (%) 50 | 4 96 39 90 98 72 52 42 44 34 67 11 75 21 84 18 48 11 Regions Visited 17 Branch Regions 3 Pre-discovered Areas 11 | . 2 . 1 . 4 . 3 . . . . . . . 1 . . Known Exits Taken 8 | . . 1 . 1 1 . 1 . 1 . 1 . 1 . 1 . . Unknown Exits Taken 3 | 1 1 . 1 . . . . . . . . . . . . . . Scrap Searched 3 | . . 1 . 2 . . . . . . . . . . . . . Spaces Dug 150 | . 21 . . . 11 1 15 9 32 . 14 3 23 3 2 16 . Terrain Destroyed 582 | . 24 . . . 41 26 36 32 105 4 44 3 53 17 59 80 58 Melee 111 | . 10 . . . 11 1 15 9 26 . 14 3 6 1 2 13 . Projectile 159 | . 14 . . . 2 1 6 . 21 4 1 . 47 15 22 9 17 AOE 311 | . . . . . 28 24 15 23 58 . 29 . . . 35 58 41 Terrain Rammed 1 | . 1 . . . . . . . . . . . . . . . . Walls Destroyed . | . . . . . . . . . . . . . . . . . . Machines Disabled . | . . . . . . . . . . . . . . . . . . Actions | -11 -10 -10 -10 -9 -8 -8 -7 -7 -6 -6 -6 -6 -5 -5 -4 -4 -4 --------- Run | Yrd Mat Min Exi Min Mat Gar Fac Gar Fac Gar Fac Gar Fac Gar Fac Gar Fac Total 19817 | 99 1468 247 706 540 1758 797 2378 868 2014 837 592 1106 1186 2226 1394 932 669 Wait 2084 | . 179 7 . . 384 114 324 122 142 45 38 99 60 242 197 52 79 Move 15254 | 75 1105 222 692 533 1152 540 1864 662 1698 644 496 829 960 1640 973 724 445 Hop . | . . . . . . . . . . . . . . . . . . Pick Up 197 | 7 27 3 . 3 29 8 13 3 17 13 4 5 12 18 13 13 9 Fast Attach 104 | 6 4 . 2 . 13 2 15 1 13 4 3 1 6 8 14 7 5 Attach 86 | 1 4 2 . . 9 2 5 2 3 8 . 3 8 7 13 10 9 Detach 34 | . 1 . . . 5 . 5 2 . 3 1 . 4 4 4 3 2 Swap 349 | . 22 4 . . 37 19 29 20 27 20 14 34 16 39 29 13 26 Drop 233 | . 18 2 2 3 36 8 28 1 23 9 9 8 17 26 21 9 13 Fire 943 | 10 90 6 . . 76 35 72 29 50 60 10 64 90 106 125 40 80 Melee 202 | . 14 . . . 13 6 18 18 41 6 17 21 13 14 4 16 1 Ram 1 | . 1 . . . . . . . . . . . . . . . . Kick 10 | . . . . . 3 . 5 . . . . . . . 1 1 . Crush 6 | . 3 1 . 1 1 . . . . . . . . . . . . Escape Stasis 50 | . . . . . . . . . . 8 . 32 . 10 . . . Rewire 200 | . . . 10 . . 56 . 1 . . . . . 95 . 38 . Trap . | . . . . . . . . . . . . . . . . . . Miscellaneous 64 | . . . . . . 7 . 7 . 17 . 10 . 17 . 6 . Route ------- -11/Scrapyard -10/Materials (discovered 5 exits: *Mat x3 / [*Min] / Sub) -10/Mines (discovered 4 exits: *Mat x2 / *Exi / Sub) -10/Exiles (discovered 2 exits: [*Min x2]) -9/Mines (discovered 2 exits: *Mat x2) -8/Materials (discovered 4 exits: *Fac x3 / Gar) -8/Garrison -7/Factory (discovered 6 exits: *Fac x4 / [*Low] / Gar) -7/Garrison (discovered 2 exits: *Fac x2) -6/Factory -6/Garrison (discovered 2 exits: *Fac x2) -6/Factory -6/Garrison (discovered 3 exits: *Fac x3) -5/Factory (discovered 2 exits: Ext / Gar) -5/Garrison (discovered 3 exits: *Fac x3) -4/Factory (discovered 3 exits: [*Res x2] / Gar) -4/Garrison -4/Factory (discovered 1 exit: [Res]) History --------- Turn | Location | Event 8 | -11/Scrapyard | Discovered new exit (range 15) 164 | -11/Scrapyard | Entered Materials 317 | -10/Materials | Build established: Mutant 411 | -10/Materials | Discovered new exit (range 3) 549 | -10/Materials | Discovered new exit (range 8) 986 | -10/Materials | Discovered new exit (range 12) 1494 | -10/Materials | Identified exit to Materials 1552 | -10/Materials | Learned location of 2 exits from Mines 1599 | -10/Materials | Identified exit to Subcaves 1690 | -10/Materials | Learned 4 Recycling zone layouts 1700 | -10/Materials | Core integrity fell below 50% 1719 | -10/Materials | Learned 2 Storage zone layouts 1787 | -10/Materials | Learned location of 1 exit from Recycling 2391 | -10/Materials | Repaired Beam Cannon 2520 | -10/Materials | Entered Mines 2522 | -10/Mines | Identified exit to Exiles 2679 | -10/Mines | Found a Scrap Suit stashed away for nefarious purposes 2759 | -10/Mines | Assembled infested the area 2853 | -10/Mines | Found Scrap Suit 2875 | -10/Mines | Found a hidden stash of uninstalled traps 2910 | -10/Mines | Entered Exiles 2949 | -10/Exiles | Met 8R-AWN 2976 | -10/Exiles | Met EX-HEX 3060 | -10/Exiles | Discovered new exit (range 15) 3078 | -10/Exiles | Build established: Scavenger-Mutant 3219 | -10/Exiles | Met EX-DEC 3256 | -10/Exiles | Visited The Gauntlet 3470 | -10/Exiles | Learned location of Zion (-7) 3505 | -10/Exiles | Met EX-BIN 3827 | -10/Exiles | Discovered new exit (range 14) 4032 | -10/Exiles | Entered Mines 4033 | -9/Mines | Identified exit to Materials 4410 | -9/Mines | Learned Materials interactive machine intel 4433 | -9/Mines | A weapon hastily lodged in a ceiling crevice suddenly fell to the ground 4798 | -9/Mines | Assisted by bots powering up and referring to "LRC-V3" 4890 | -9/Mines | Entered Materials 4890 | -8/Materials | Accompanied by 3 allies 4890 | -8/Materials | Evolved 4 slots: Propulsion x1, Utility x2, Weapon x1 4891 | -8/Materials | Loaded intel: 19 interactive machine locations 5520 | -8/Materials | Build established: Tank 5721 | -8/Materials | Repaired Seismic Detector 6200 | -8/Materials | Garrison activated, responded to threat 6309 | -8/Materials | Central database locked down 6319 | -8/Materials | Discovered new exit (range 9) 6396 | -8/Materials | Identified exit to Factory 6511 | -8/Materials | Destroyed 7 combat bots 6516 | -8/Materials | Learned 4 Factory zone layouts 6558 | -8/Materials | Learned Storage machine intel 6738 | -8/Materials | Learned Storage security intel 7174 | -8/Materials | Identified exit to Garrison 7174 | -8/Materials | Entered Garrison 7220 | -8/Garrison | Triggered checkpoint 7451 | -8/Garrison | Installed Relay Interface Framework 7491 | -8/Garrison | Garrison Relay disabled 7712 | -8/Garrison | Triggered checkpoint 7714 | -8/Garrison | Triggered checkpoint 7916 | -8/Garrison | Triggered checkpoint 7986 | -8/Garrison | Expanded RIF knowledge: Patrol Navigation 8106 | -8/Garrison | Garrison Relay disabled 8198 | -8/Garrison | Discovered exit to Factory (range 10) 8217 | -8/Garrison | Entered Factory 8217 | -7/Factory | Accompanied by 2 allies 8217 | -7/Factory | Evolved 2 slots: Utility x2 8400 | -7/Factory | Build established: Bothacker-Mutant 9024 | -7/Factory | Build established: Bothacker-Tank 9125 | -7/Factory | Discovered new exit (range 9) 9756 | -7/Factory | Build established: Tank 9848 | -7/Factory | Discovered new exit (range 15) 10080 | -7/Factory | Identified exit to Garrison 10642 | -7/Factory | Learned Extension garrison access intel 10712 | -7/Factory | Learned Extension emergency access door positions 10773 | -7/Factory | Learned 2 Upper Caves zone layouts 10822 | -7/Factory | Identified exit to Factory 10860 | -7/Factory | Learned location of 1 exit from Extension 10943 | -7/Factory | Learned 12 Factory zone layouts 10986 | -7/Factory | Learned location of Hub_04(d) (-5) 11006 | -7/Factory | Central database locked down 11040 | -7/Factory | Learned 4 Factory zone layouts 11241 | -7/Factory | Entered Garrison 11241 | -7/Garrison | Accompanied by 1 ally 11377 | -7/Garrison | Triggered checkpoint 11604 | -7/Garrison | Garrison Relay disabled 11853 | -7/Garrison | Triggered checkpoint 11876 | -7/Garrison | Triggered checkpoint 11966 | -7/Garrison | Triggered checkpoint 12011 | -7/Garrison | Garrison Relay disabled 12025 | -7/Garrison | Build established: Gunner 12123 | -7/Garrison | Expanded RIF knowledge: Alert ID Control 12204 | -7/Garrison | Triggered checkpoint 12259 | -7/Garrison | Discovered exit to Factory (range 15) 12333 | -7/Garrison | Entered Factory 12333 | -6/Factory | Evolved 2 slots: Propulsion x2 12529 | -6/Factory | Build established: Bothacker-Mutant 12571 | -6/Factory | Fabricated Imp. Kinecellerator? 12911 | -6/Factory | Spotted B-75 Beast 13523 | -6/Factory | Destroyed 7 combat bots 13705 | -6/Factory | Repaired Imp. Carbon-fiber Leg+ 13729 | -6/Factory | Repaired Imp. Carbon-fiber Leg+ 13733 | -6/Factory | First assault squad dispatched 13769 | -6/Factory | Build established: Gunner 14616 | -6/Factory | Identified exit to Garrison 14672 | -6/Factory | Entered Garrison 14766 | -6/Garrison | Triggered checkpoint 14827 | -6/Garrison | Garrison Relay disabled 14949 | -6/Garrison | Triggered checkpoint 14966 | -6/Garrison | Triggered checkpoint 15282 | -6/Garrison | Discovered new exit (range 10) 15296 | -6/Garrison | Triggered checkpoint 15413 | -6/Garrison | Garrison Relay disabled 15508 | -6/Garrison | Discovered new exit (range 9) 15556 | -6/Garrison | Triggered checkpoint 15605 | -6/Garrison | Build established: Bothacker-Gunner 15621 | -6/Garrison | Destroyed 10 combat bots 15664 | -6/Garrison | Expanded RIF knowledge: Command Fork 15691 | -6/Garrison | Garrison Relay disabled 15752 | -6/Garrison | Entered Factory 15755 | -6/Factory | Identified exit to DSF 15993 | -6/Factory | Build established: Bothacker-Mutant 16102 | -6/Factory | First assault squad dispatched 16459 | -6/Factory | Identified exit to Garrison 16468 | -6/Factory | Entered Garrison 16552 | -6/Garrison | Triggered checkpoint 16584 | -6/Garrison | Garrison Relay disabled 16757 | -6/Garrison | Triggered checkpoint 16766 | -6/Garrison | Triggered checkpoint 16924 | -6/Garrison | Destroyed 8 combat bots 16934 | -6/Garrison | Core integrity fell below 50% 16944 | -6/Garrison | Triggered checkpoint 17020 | -6/Garrison | Triggered checkpoint 17086 | -6/Garrison | Discovered new exit (range 13) 17174 | -6/Garrison | Build established: Bothacker-Gunner 17219 | -6/Garrison | Garrison Relay disabled 17482 | -6/Garrison | Discovered new exit (range 10) 17508 | -6/Garrison | Triggered checkpoint 17577 | -6/Garrison | Garrison Relay disabled 17796 | -6/Garrison | Triggered checkpoint 17837 | -6/Garrison | Expanded RIF knowledge: Autoassimilate 17857 | -6/Garrison | Discovered new exit (range 3) 17866 | -6/Garrison | Entered Factory 17866 | -5/Factory | Accompanied by 1 ally 17866 | -5/Factory | Evolved 2 slots: Utility x2 17867 | -5/Factory | Identified exit to Extension 18080 | -5/Factory | Spotted B-75 Beast 18309 | -5/Factory | Repaired Arm. Leg 18362 | -5/Factory | P-70 Sage assimilated allied Sentinel 6a 18363 | -5/Factory | P-70 Sage assimilated allied Guardian 5b 18442 | -5/Factory | Build established: Bothacker-Mutant 18824 | -5/Factory | Build established: Bothacker-Gunner 19282 | -5/Factory | Garrison activated, responded to threat 19334 | -5/Factory | Identified exit to Garrison 19342 | -5/Factory | Entered Garrison 19342 | -5/Garrison | Accompanied by 2 allies 19406 | -5/Garrison | Triggered checkpoint 19486 | -5/Garrison | Garrison Relay disabled 19682 | -5/Garrison | Triggered checkpoint 19687 | -5/Garrison | Triggered checkpoint 19726 | -5/Garrison | Lost 3 allies 20141 | -5/Garrison | Lost 3 allies 20257 | -5/Garrison | Garrison Relay disabled 20491 | -5/Garrison | Discovered new exit (range 10) 20576 | -5/Garrison | Triggered checkpoint 20700 | -5/Garrison | Triggered checkpoint 20724 | -5/Garrison | Triggered checkpoint 20857 | -5/Garrison | Found Adv. Powered Armor 21061 | -5/Garrison | Discovered new exit (range 13) 21115 | -5/Garrison | Build established: Bothacker-Mutant 21218 | -5/Garrison | Triggered checkpoint 21256 | -5/Garrison | Garrison Relay disabled 21407 | -5/Garrison | Triggered checkpoint 21491 | -5/Garrison | Discovered new exit (range 12) 21520 | -5/Garrison | Triggered checkpoint 21542 | -5/Garrison | Garrison Relay disabled 21642 | -5/Garrison | Expanded RIF knowledge: Zone Cloak 21768 | -5/Garrison | Triggered checkpoint 22012 | -5/Garrison | Found Quantum Capacitor 22178 | -5/Garrison | Build established: Botlord-Mutant 22229 | -5/Garrison | Entered Factory 22229 | -4/Factory | Accompanied by 11 allies 22229 | -4/Factory | Evolved 2 slots: Power x1, Propulsion x1 22365 | -4/Factory | Fabricated Myomer Leg (x2) 22597 | -4/Factory | Spotted B-86 Titan 22608 | -4/Factory | P-70 Sage assimilated allied Soldier 6g 22719 | -4/Factory | Lost 12 allies 22857 | -4/Factory | Discovered new exit (range 34) 22980 | -4/Factory | Build established: Botlord-Gunner 23729 | -4/Factory | First assault squad dispatched 23780 | -4/Factory | Discovered new exit (range 15) 23905 | -4/Factory | Build established: Bothacker-Tank 23911 | -4/Factory | Identified exit to Garrison 23911 | -4/Factory | Entered Garrison 23927 | -4/Garrison | Triggered checkpoint 23982 | -4/Garrison | System corruption reached 10% 24022 | -4/Garrison | Lost 7 parts (2p1n3u1w) 24066 | -4/Garrison | Garrison Relay disabled 24069 | -4/Garrison | Triggered checkpoint 24400 | -4/Garrison | Build established: Botlord-Tank 24417 | -4/Garrison | Spotted B-86 Titan 24601 | -4/Garrison | Triggered checkpoint 24620 | -4/Garrison | Garrison Relay disabled 24886 | -4/Garrison | Expanded RIF knowledge: Structural Interface 24919 | -4/Garrison | Build established: Botlord-Mutant 25105 | -4/Garrison | Triggered checkpoint 25139 | -4/Garrison | Lost 3 allies 25162 | -4/Garrison | Discovered new exit (range 14) 25166 | -4/Garrison | Lost 4 parts (1p1n2w) 25201 | -4/Garrison | Entered Factory 25329 | -4/Factory | Garrison activated, responded to threat 25681 | -4/Factory | Build established: Botlord-Gunner 25770 | -4/Factory | Discovered new exit (range 71) 25895 | -4/Factory | Lost 4 parts (3n1u) 25951 | -4/Factory | First assault squad dispatched 26083 | -4/Factory | Core integrity fell below 50% 26118 | -4/Factory | Core integrity fell below 20% 26127 | -4/Factory | Self-destructed Last Messages --------------- 26122_ K-01 Serf collects debris. 26122_ X-72 Disruptor suffers critical hit (Blast). 26122_ Network quickbooting X-72 Disruptor, ETC: 5. 26123_ Slug penetrates Wall. 26123_ Imp. Remote Datajack destroyed. 26123_ K-01 Serf collects debris. 26124_ Acquired 37 matter. 26124_ Slug penetrates Wall. 26124_ Penetrated by Slug. 26124_ U-05 Engineer destroyed. 26124_ Slug penetrates Wall. 26125_ Wall collapses. 26125_ Slug penetrates Wall. 26125_ Slug penetrates U-05 Engineer. 26125_ U-05 Engineer destroyed. 26126_ K-01 Serf collects debris. 26126_ Slug penetrates Wall. 26126_ Penetrated by Slug. 26127_ U-05 Engineer destroyed. 26127_ X-72 Disruptor reactivates. Map ----- +----------------------------------------------------+ | ?????????????????????????????????????????????????? | | ?????????????????????????????????????????????????? | | ?????????????????????????????????????????????????? | | ?????????????????????????????????????????????????? | | ?????????????????????????????????????????????????? | | ?????????????????????????????????????????????????? | | ?????????????????????????????????????????????????? | | #######????????????????#?????????????????????????? | | ?????????????? # ???????????????????? | | ???????#?????? # "??????????????????? | | ???????# ???" # ""? ??#????????????? | | ???????# """" # ##???????????? | | ???????# # """ ????????????? | | ???????# # """ ?????????????? | | ???????#######+### """ ????????????? | | ??????????# ?????????????? | | ??????????# """ ???####?????? | | #+#####?????????# = """ #### # #?????? | | #######??????# =!=%! """ ##########???? | | ???????#*!!!!! # #???? | | #######???######;h####### """ # "" ##### | | #?????????# !!! ] ## """ # !""" # | | #?????????# ![| ## """ # ="""" # | | #?????????# = | ##[ # """ # | | #?????????# % ## """ %# """ | | #?????????#k = ]@## """ !# "" # | | #?????????# ! ## """ # # # | | ##????????# %* *%=# # # # | | #????????# ! !%x%## """ ###+### # # | | " ########## H =!% = xk%## """ | | "T / |*%!=%=!|%;# """ | | ########## =|!!= =%* = "" | | #????????# | !|!* ## """ """ "" | | # ###????????############### """ H """ T" | | # #????????????????????????# """ """ "" | | # ##???????????????????????# "" | | ????????????????????????# *** """ % | | ???????????????????????????# * * """ !! | | ???????????????????????????# """ ! | | ???????????????????????????# | | ???????????????????????????# | | ???????????????????????????######+########+## #+## | | ???????????????????????????# [ ## ?? ?? | | ???????????????????????????# ## ?????? | | ???????????????????????????# """""" ## ????? | | ???????????????????????????# """""" ## ????? | | ???????????????????????????# """""" = = ## ???? | | ???????????????????????????# """""" [ ## ???? | | ???????????????????????????# = ## ??? | | ???????????????????????????# """""" ## "??? | +----------------------------------------------------+ Best States ------------- Heat Dissipation 74 Energy Generation 41 Energy Capacity 550 Matter Stores 375 Matter Capacity 400 Sight Range 22 Terrain Scan Range 20 Terrain Scan Density 10 Jamming Range 14 Armor Coverage 625 Resistance: KI 25 Propulsion Shielding 66 Weapon Cycling 20 Phase Shifting 10 Evasion (%) 70 Targeting Accuracy 5 Target Analysis 6 Core Analysis 6 Recoil Reduction 3 Kinecelleration 40 Offensive Hacking 10 Relay Coupler Types 4 Relay Coupler Value 91 Item Schematics ----------------- Hcp. Storage Unit | -10/Materials | Hacked Imp. Propulsion Shielding | -8/Materials | Scanalyzed Med. Armor Plating | -8/Materials | Scanalyzed Mic. Nuclear Core | -8/Materials | Scanalyzed Grenade Launcher | -8/Materials | Scanalyzed Adv. Beam Cannon | -8/Materials | Scanalyzed Imp. Carbon-fiber Leg | -8/Materials | Scanalyzed Gauss Cannon | -7/Factory | Hacked Robot Schematics ------------------ None Fabricated ------------ Imp. Kinecellerator | x2 | -6/Factory | Preloaded Myomer Leg | x2 | -4/Factory | Preloaded Repaired ---------- Beam Cannon | 3% | -10/Materials Seismic Detector | 10% | -8/Materials Imp. Carbon-fiber Leg | 13% | -6/Factory Imp. Carbon-fiber Leg | 18% | -6/Factory Arm. Leg | 14% | -5/Factory Studied --------- Imp. Carbon-fiber Leg | -7/Factory | Hacked Remote Datajack | -7/Factory | Hacked Alien Tech Used ----------------- None Achievements -------------- Construction Begets Destruction Ghost 'Em Hack The Planet Hackerman Join The Dark Side Let Me Out Of Here Mindtrick Not Today, Chutes Plot Armor Pwned Satisfying Versatile Watcher Gambling Well Done You Will Be Upgraded Zeroed Repercussions Challenges ------------ None Game ------ Seed PowerPhaseAutopenetrator Manual? 0 Play Time 07:07:23 Cumulative 194.6 hours Start 2025.11.08 @ 17:36:03 End 2025.11.11 @ 17:06:57 Sessions 21 Manual Loads 0 Difficulty Rogue Special Mode None Game No. 66 Rogue 66 Adventurer 0 Explorer 0 Win Type - Total 1 Types 1/0/0/0/0/0/0/0/0/0 Lore% 51 Gallery% 48 Achievement% 34 Wizard Run 0 Options --------- Layout 0 ASCII 1 Keyboard 1 Movement Arrows Keybinds 0 Fullscreen 1 Font 24/Smallcaps Map View 76x50 Zoom Use 0% Tactical HUD 1 Map Filters NONE Filters NONE Steam 1 RUN: aa016138-256e-4d99-887a-4bd7c93a7561